fUSD/lending_fUSD_20240520
["ID","MTS","AMOUNT","RATE_DAILY","PERIOD"]
[327586519,1716245487048,-500.0,0.00039178,6]
[327586520,1716245487058,-500.0,0.00039178,6]
[327586521,1716245487067,-699.07,0.00039178,6]
[327586522,1716245487077,-500.0,0.00039178,6]
[327586523,1716245487086,-630.43,0.00039178,6]
[327586524,1716245487095,-951.9,0.00039178,6]
[327586525,1716245487105,-500.0,0.00039178,6]
[327586526,1716245487114,-500.0,0.00039178,6]
[327586527,1716245487124,-500.0,0.00039178,6]
[327586528,1716245487133,-500.0,0.00039178,6]
[327586529,1716245487143,-566.09,0.00039178,6]
[327586530,1716245487152,-573.17,0.00039178,6]
[327586531,1716245487162,-692.51,0.00039178,6]
[327586532,1716245487171,-500.0,0.00039178,6]
[327586533,1716245487181,-500.0,0.00039178,6]
[327586534,1716245487190,-500.0,0.00039178,6]
[327586535,1716245487199,-500.0,0.00039178,6]
[327586536,1716245487209,-448.70344518,0.00039178,6]
[327586537,1716245487218,-500.0,0.00039178,6]
[327586538,1716245487227,-500.0,0.00039178,6]
[327586539,1716245487236,-500.0,0.00039178,6]
[327586540,1716245487246,-500.77,0.00039178,6]
[327586541,1716245487255,-500.0,0.00039178,6]
[327586542,1716245487265,-523.68,0.00039178,6]
[327586543,1716245487275,-439.46033502,0.00039178,6]
[327586544,1716245487284,-500.0,0.00039178,6]
[327586545,1716245487293,-500.0,0.00039178,6]
[327586546,1716245487302,-581.9,0.00039178,6]
[327586547,1716245487312,-500.0,0.00039178,6]
[327586548,1716245487322,-874.62,0.00039178,6]
[327586549,1716245487332,-500.0,0.00039178,6]
[327586550,1716245487344,-500.0,0.00039178,6]
[327586551,1716245487355,-500.0,0.00039178,6]
[327586552,1716245487364,-500.0,0.00039178,6]
[327586553,1716245487374,-1480.11,0.00039178,6]
[327586554,1716245487383,-500.0,0.00039178,6]
[327586555,1716245487393,-500.0,0.00039178,6]
[327586556,1716245487403,-500.0,0.00039178,6]
[327586557,1716245487413,-519.47,0.00039178,6]
[327586558,1716245487424,-500.0,0.00039178,6]
[327586559,1716245487434,-579.13,0.00039178,6]
[327586560,1716245487444,-500.0,0.00039178,6]
[327586561,1716245487454,-521.78,0.00039178,6]
[327586562,1716245487463,-500.0,0.00039178,6]
[327586563,1716245487472,-500.0,0.00039178,6]
[327586564,1716245487482,-517.76,0.00039178,6]
[327586565,1716245487491,-1853.21,0.00039178,6]
[327586566,1716245487500,-500.0,0.00039178,6]
[327586567,1716245487509,-500.0,0.00039178,6]
[327586568,1716245487520,-500.0,0.00039178,6]
[327586569,1716245487530,-500.0,0.00039178,6]
[327586570,1716245487539,-725.96,0.00039178,6]
[327586571,1716245487548,-500.0,0.00039178,6]
[327586572,1716245487559,-500.0,0.00039178,6]
[327586573,1716245487568,-500.0,0.00039178,6]
[327586574,1716245487578,-500.0,0.00039178,6]
[327586575,1716245487589,-500.0,0.00039178,6]
[327586576,1716245487600,-1377.2,0.00039178,6]
[327586577,1716245487611,-500.0,0.00039178,6]
[327586578,1716245487624,-500.0,0.00039178,6]
[327586579,1716245487634,-1059.73,0.00039178,6]
[327586580,1716245487643,-500.0,0.00039178,6]
[327586581,1716245487655,-500.0,0.00039178,6]
[327586582,1716245487664,-802.75,0.00039178,6]
[327586583,1716245487674,-500.0,0.00039178,6]
[327586584,1716245487685,-500.0,0.00039178,6]
[327586585,1716245487695,-500.0,0.00039178,6]
[327586586,1716245487704,-1017.28,0.00039178,6]
[327586587,1716245487713,-500.0,0.00039178,6]
[327586588,1716245487722,-500.0,0.00039178,6]
[327586589,1716245487731,-500.0,0.00039178,6]
[327586590,1716245487740,-500.0,0.00039178,6]
[327586591,1716245487750,-500.0,0.00039178,6]
[327586592,1716245487759,-500.0,0.00039178,6]
[327586593,1716245487770,-500.0,0.00039178,6]
[327586594,1716245487779,-1005.04,0.00039178,6]
[327586595,1716245487788,-500.0,0.00039178,6]
[327586596,1716245487797,-500.0,0.00039178,6]
[327586597,1716245487806,-545.92,0.00039178,6]
[327586598,1716245487815,-500.0,0.00039178,6]
[327586599,1716245487824,-500.0,0.00039178,6]
[327586600,1716245487833,-1080.28,0.00039178,6]
[327586601,1716245487842,-500.0,0.00039178,6]
[327586602,1716245487851,-500.0,0.00039178,6]
[327586603,1716245487860,-500.0,0.00039178,6]
[327586604,1716245487869,-500.0,0.00039178,6]
[327586605,1716245487879,-500.0,0.00039178,6]
[327586606,1716245487891,-500.0,0.00039178,6]
[327586607,1716245487899,-500.0,0.00039178,6]
[327586608,1716245487907,-521.12,0.00039178,6]
[327586609,1716245487916,-500.0,0.00039178,6]
[327586610,1716245487927,-861.41,0.00039178,6]
[327586611,1716245487936,-582.04,0.00039178,6]
[327586612,1716245487945,-500.0,0.00039178,6]
[327586613,1716245487954,-500.0,0.00039178,6]
[327586614,1716245487965,-500.0,0.00039178,6]
[327586615,1716245487974,-500.0,0.00039178,6]
[327586616,1716245487983,-1066.24,0.00039178,6]
[327586617,1716245487993,-500.0,0.00039178,6]
[327586618,1716245488002,-700.32,0.00039178,6]
[327586619,1716245488011,-500.0,0.00039178,6]
[327586620,1716245488023,-1227.85,0.00039178,6]
[327586621,1716245488032,-500.0,0.00039178,6]
[327586622,1716245488041,-500.0,0.00039178,6]
[327586623,1716245488050,-500.0,0.00039178,6]
[327586624,1716245488059,-500.0,0.00039178,6]
[327586625,1716245488068,-500.0,0.00039178,6]
[327586626,1716245488077,-655.99,0.00039178,6]
[327586627,1716245488086,-505.49,0.00039178,6]
[327586628,1716245488095,-500.0,0.00039178,6]
[327586629,1716245488105,-500.0,0.00039178,6]
[327586630,1716245488114,-500.0,0.00039178,6]
[327586631,1716245488123,-500.0,0.00039178,6]
[327586632,1716245488212,-500.0,0.00039178,6]
[327586633,1716245488222,-500.0,0.00039178,6]
[327586634,1716245488231,-947.86,0.00039178,6]
[327586635,1716245488240,-500.0,0.00039178,6]
[327586636,1716245488250,-500.0,0.00039178,6]
[327586637,1716245488259,-500.0,0.00039178,6]
[327586638,1716245488270,-500.0,0.00039178,6]
[327586639,1716245488279,-223.61772047,0.00039178,6]
[327586640,1716245488288,-677.25,0.00039178,6]
[327586641,1716245488297,-500.0,0.00039178,6]
[327586642,1716245488307,-529.78,0.00039178,6]
[327586643,1716245488316,-542.79,0.00039178,6]
[327586644,1716245488325,-500.0,0.00039178,6]
[327586645,1716245488334,-500.0,0.00039178,6]
[327586646,1716245488344,-894.5,0.00039178,6]
[327586647,1716245488353,-1183.71,0.00039178,6]
[327586648,1716245488362,-500.0,0.00039178,6]
[327586649,1716245488371,-536.28,0.00039178,6]
[327586650,1716245488381,-571.74,0.00039178,6]
[327586651,1716245488390,-648.97,0.00039178,6]
[327586652,1716245488399,-500.0,0.00039178,6]
[327586653,1716245488408,-1296.5,0.00039178,6]
[327586654,1716245488417,-500.0,0.00039178,6]
[327586655,1716245488426,-500.0,0.00039178,6]
[327586656,1716245488435,-500.0,0.00039178,6]
[327586657,1716245488444,-500.0,0.00039178,6]
[327586658,1716245488454,-966.59,0.00039178,6]
[327586659,1716245488463,-500.0,0.00039178,6]
[327586660,1716245488472,-500.0,0.00039178,6]
[327586661,1716245488480,-500.0,0.00039178,6]
[327586662,1716245488489,-500.0,0.00039178,6]
[327586663,1716245488499,-569.58508124,0.00039178,6]
[327586664,1716245488508,-500.0,0.00039178,6]
[327586665,1716245488518,-887.97,0.00039178,6]
[327586666,1716245488527,-500.0,0.00039178,6]
[327586667,1716245488536,-685.22,0.00039178,6]
[327586668,1716245488545,-609.13,0.00039178,6]
[327586669,1716245488555,-500.0,0.00039178,6]
[327586670,1716245488564,-500.0,0.00039178,6]
[327586671,1716245488574,-1805.5,0.00039178,6]
[327586672,1716245488583,-614.37,0.00039178,6]
[327586673,1716245488592,-500.0,0.00039178,6]
[327586674,1716245488602,-500.0,0.00039178,6]
[327586675,1716245488611,-500.72,0.00039178,6]
[327586676,1716245488620,-614.23,0.00039178,6]
[327586677,1716245488629,-721.58,0.00039178,6]
[327586678,1716245488639,-543.0075249,0.00039178,6]
[327586679,1716245488648,-1594.63,0.00039178,6]
[327586680,1716245488657,-951.99,0.00039178,6]
[327586681,1716245488667,-500.0,0.00039178,6]
[327586682,1716245488676,-500.0,0.00039178,6]
[327586683,1716245488685,-500.0,0.00039178,6]
[327586684,1716245488694,-500.0,0.00039178,6]
[327586685,1716245488704,-500.0,0.00039178,6]
[327586686,1716245488713,-737.26,0.00039178,6]
[327586687,1716245488723,-500.0,0.00039178,6]
[327586688,1716245488732,-653.78,0.00039178,6]
[327586689,1716245488741,-500.0,0.00039178,6]
[327586690,1716245488750,-869.7,0.00039178,6]
[327586691,1716245488760,-1235.45,0.00039178,6]
[327586692,1716245488770,-500.0,0.00039178,6]
[327586693,1716245488780,-844.59,0.00039178,6]
[327586694,1716245488789,-500.0,0.00039178,6]
[327586695,1716245488798,-815.1,0.00039178,6]
[327586696,1716245488807,-500.0,0.00039178,6]
[327586697,1716245488817,-792.62,0.00039178,6]
[327586698,1716245488826,-500.0,0.00039178,6]
[327586699,1716245488836,-500.0,0.00039178,6]
[327586700,1716245488845,-1688.49,0.00039178,6]
[327586701,1716245488854,-500.0,0.00039178,6]
[327586702,1716245488863,-500.0,0.00039178,6]
[327586703,1716245488873,-500.0,0.00039178,6]
[327586704,1716245488887,-500.0,0.00039178,6]
[327586705,1716245488896,-1132.52,0.00039178,6]
[327586706,1716245488906,-613.17,0.00039178,6]
[327586707,1716245488915,-676.68,0.00039178,6]
[327586708,1716245488926,-448.5,0.00039178,6]
[327586709,1716245488936,-1112.93,0.00039178,6]
[327586710,1716245488945,-624.17,0.00039178,6]
[327586711,1716245488956,-500.0,0.00039178,6]
[327586712,1716245488966,-1402.82,0.00039178,6]
[327586713,1716245488976,-500.0,0.00039178,6]
[327586714,1716245488986,-500.0,0.00039178,6]
[327586715,1716245488996,-500.0,0.00039178,6]
[327586716,1716245489005,-500.0,0.00039178,6]
[327586717,1716245489016,-503.98,0.00039178,6]
[327586718,1716245489026,-1270.81,0.00039178,6]
[327586719,1716245489035,-2000.0,0.00039178,6]
[327586720,1716245489045,-500.0,0.00039178,6]
[327586721,1716245489054,-500.0,0.00039178,6]
[327586722,1716245489064,-518.64760011,0.00039178,6]
[327586723,1716245489073,-500.0,0.00039178,6]
[327586724,1716245489082,-500.0,0.00039178,6]
[327586725,1716245489092,-500.0,0.00039178,6]
[327586726,1716245489101,-1624.08,0.00039178,6]
[327586727,1716245489110,-1215.61,0.00039178,6]
[327586728,1716245489119,-500.0,0.00039178,6]
[327586729,1716245489128,-500.0,0.00039178,6]
[327586730,1716245489138,-500.0,0.00039178,6]
[327586731,1716245489147,-680.37,0.00039178,6]
[327586732,1716245489156,-794.16,0.00039178,6]
[327586733,1716245489165,-500.0,0.00039178,6]
[327586734,1716245489174,-500.0,0.00039178,6]
[327586735,1716245489184,-500.0,0.00039178,6]
[327586736,1716245489193,-878.74,0.00039178,6]
[327586737,1716245489202,-692.64,0.00039178,6]
[327586738,1716245489211,-500.0,0.00039178,6]
[327586739,1716245489221,-500.0,0.00039178,6]
[327586740,1716245489230,-500.0,0.00039178,6]
[327586741,1716245489239,-556.27,0.00039178,6]
[327586742,1716245489248,-1468.73,0.00039178,6]
[327586743,1716245489258,-1118.81,0.00039178,6]
[327586744,1716245489267,-500.0,0.00039178,6]
[327586745,1716245489276,-531.44,0.00039178,6]
[327586746,1716245489286,-500.0,0.00039178,6]
[327586747,1716245489295,-500.0,0.00039178,6]
[327586748,1716245489304,-762.04,0.00039178,6]
[327586749,1716245489313,-1534.91,0.00039178,6]
[327586750,1716245489322,-203.20473263,0.00039178,6]
[327586751,1716245489331,-1751.59,0.00039178,6]
[327586752,1716245489341,-20000.0,0.00039178,2]
[327586753,1716245489350,-500.0,0.00039178,6]
[327586754,1716245489359,-500.0,0.00039178,6]
[327586755,1716245489368,-500.0,0.00039178,6]
[327586756,1716245489377,-533.05129022,0.00039178,6]
[327586757,1716245489386,-500.0,0.00039178,6]
[327586758,1716245489395,-500.0,0.00039178,6]
[327586759,1716245489404,-1735.41,0.00039178,6]
[327586760,1716245489413,-500.0,0.00039178,6]
[327586761,1716245489422,-500.0,0.00039178,6]
[327586762,1716245489431,-631.84,0.00039178,6]
[327586763,1716245489440,-548.69,0.00039178,6]
[327586764,1716245489449,-1907.7,0.00039178,6]
[327586765,1716245489458,-500.0,0.00039178,6]
[327586766,1716245489467,-500.0,0.00039178,6]
[327586767,1716245489476,-500.0,0.00039178,6]
[327586768,1716245489486,-698.91,0.00039178,6]
[327586769,1716245489495,-500.0,0.00039178,6]
[327586770,1716245489504,-500.0,0.00039178,6]
[327586771,1716245489513,-500.0,0.00039178,6]
[327586772,1716245489525,-500.0,0.00039178,6]
[327586773,1716245489534,-500.0,0.00039178,6]
[327586774,1716245489543,-1562.11,0.00039178,6]
[327586775,1716245489553,-500.0,0.00039178,6]
[327586776,1716245489562,-500.0,0.00039178,6]
[327586777,1716245489571,-559.49029371,0.00039178,6]
[327586778,1716245489581,-513.0348231,0.00039178,6]
[327586779,1716245489590,-649.51,0.00039178,6]
[327586780,1716245489599,-500.0,0.00039178,6]
[327586781,1716245489608,-1735.52,0.00039178,6]
[327586782,1716245489617,-500.0,0.00039178,6]
[327586783,1716245489626,-500.0,0.00039178,6]
[327586784,1716245489635,-509.01,0.00039178,6]
[327586785,1716245489644,-500.0,0.00039178,6]
[327586786,1716245489654,-3602.56,0.00039178,6]
[327586787,1716245489663,-500.0,0.00039178,6]
[327586788,1716245489672,-1326.84,0.00039178,6]
[327586789,1716245489680,-866.1,0.00039178,6]
[327586790,1716245489689,-403.52251088,0.00039178,6]
[327586791,1716245489698,-500.0,0.00039178,6]
[327586792,1716245489707,-2460.67,0.00039178,6]
[327586793,1716245489716,-1285.38,0.00039178,6]
[327586794,1716245489725,-500.0,0.00039178,6]
[327586795,1716245489734,-500.0,0.00039178,6]
[327586796,1716245489743,-569.59,0.00039178,6]
[327586797,1716245489752,-500.0,0.00039178,6]
[327586798,1716245489761,-1141.46,0.00039178,6]
[327586799,1716245489771,-717.83,0.00039178,6]
[327586800,1716245489780,-500.0,0.00039178,6]
[327586801,1716245489789,-500.0,0.00039178,6]
[327586802,1716245489799,-996.73,0.00039178,6]
[327586803,1716245489807,-500.0,0.00039178,6]
[327586804,1716245489817,-1574.04,0.00039178,6]
[327586805,1716245489826,-724.94,0.00039178,6]
[327586806,1716245489835,-500.0,0.00039178,6]
[327586807,1716245489845,-901.8,0.00039178,6]
[327586808,1716245489854,-569.84472645,0.00039178,6]
[327586809,1716245489863,-500.0,0.00039178,6]
[327586810,1716245489872,-650.03,0.00039178,6]
[327586811,1716245489881,-1379.17,0.00039178,6]
[327586812,1716245489894,-1006.7,0.00039178,6]
[327586813,1716245489903,-500.0,0.00039178,6]
[327586814,1716245489912,-727.37,0.00039178,6]
[327586815,1716245489921,-500.0,0.00039178,6]
[327586816,1716245489931,-232.44389604,0.00039178,6]
[327586817,1716245489940,-1247.46,0.00039178,6]
[327586818,1716245489950,-500.0,0.00039178,6]
[327586819,1716245489961,-1235.09,0.00039178,6]
[327586820,1716245489971,-500.0,0.00039178,6]
[327586821,1716245489981,-608.61,0.00039178,6]
[327586822,1716245489990,-570.47,0.00039178,6]
[327586823,1716245490000,-500.0,0.00039178,6]
[327586824,1716245490010,-500.0,0.00039178,6]
[327586825,1716245490021,-500.0,0.00039178,6]
[327586826,1716245490031,-749.41,0.00039178,6]
[327586827,1716245490040,-2567.34,0.00039178,6]
[327586828,1716245490049,-500.0,0.00039178,6]
[327586829,1716245490059,-500.0,0.00039178,6]
[327586830,1716245490070,-500.0,0.00039178,6]
[327586831,1716245490079,-500.0,0.00039178,6]
[327586832,1716245490089,-802.27,0.00039178,6]
[327586833,1716245490098,-504.98,0.00039178,6]
[327586834,1716245490108,-500.0,0.00039178,6]
[327586835,1716245490117,-500.0,0.00039178,6]
[327586836,1716245490127,-500.0,0.00039178,6]
[327586837,1716245490137,-3300.11,0.00039178,6]
[327586838,1716245490147,-500.0,0.00039178,6]
[327586839,1716245490156,-500.0,0.00039178,6]
[327586840,1716245490165,-500.0,0.00039178,6]
[327586841,1716245490175,-1619.34,0.00039178,6]
[327586842,1716245490185,-500.0,0.00039178,6]
[327586843,1716245490196,-500.0,0.00039178,6]
[327586844,1716245490206,-500.0,0.00039178,6]
[327586845,1716245490216,-500.0,0.00039178,6]
[327586846,1716245490225,-500.0,0.00039178,6]
[327586847,1716245490235,-1116.21,0.00039178,6]
[327586848,1716245490245,-500.0,0.00039178,6]
[327586849,1716245490255,-500.0,0.00039178,6]
[327586850,1716245490264,-500.0,0.00039178,6]
[327586851,1716245490276,-500.0,0.00039178,6]
[327586852,1716245490286,-500.0,0.00039178,6]
[327586853,1716245490295,-1335.12,0.00039178,6]
[327586854,1716245490304,-500.0,0.00039178,6]
[327586855,1716245490313,-500.0,0.00039178,6]
[327586856,1716245490322,-646.45,0.00039178,6]
[327586857,1716245490332,-968.38,0.00039178,6]
[327586858,1716245490342,-500.0,0.00039178,6]
[327586859,1716245490360,-500.0,0.00039178,6]
[327586860,1716245490377,-1171.28,0.00039178,6]
[327586861,1716245490387,-763.5,0.00039178,6]
[327586862,1716245490397,-500.0,0.00039178,6]
[327586863,1716245490407,-500.0,0.00039178,6]
[327586864,1716245490418,-500.0,0.00039178,6]
[327586865,1716245490429,-852.13,0.00039178,6]
[327586866,1716245490439,-500.0,0.00039178,6]
[327586867,1716245490448,-500.0,0.00039178,6]
[327586868,1716245490460,-500.0,0.00039178,6]
[327586869,1716245490471,-863.61,0.00039178,6]
[327586870,1716245490481,-500.0,0.00039178,6]
[327586871,1716245490491,-500.0,0.00039178,6]
[327586872,1716245490502,-500.0,0.00039178,6]
[327586873,1716245490512,-978.05,0.00039178,6]
[327586874,1716245490522,-785.07,0.00039178,6]
[327586875,1716245490532,-500.0,0.00039178,6]
[327586876,1716245490541,-500.0,0.00039178,6]
[327586877,1716245490553,-500.0,0.00039178,6]
[327586878,1716245490563,-500.0,0.00039178,6]
[327586879,1716245490573,-751.13,0.00039178,6]
[327586880,1716245490584,-3302.95,0.00039178,6]
[327586881,1716245490594,-500.0,0.00039178,6]
[327586882,1716245490604,-500.0,0.00039178,6]
[327586883,1716245490613,-3080.6,0.00039178,6]
[327586884,1716245490623,-1000.0,0.00039178,6]
[327586885,1716245490633,-500.0,0.00039178,6]
[327586886,1716245490643,-725.61,0.00039178,6]
[327586887,1716245490652,-500.0,0.00039178,6]
[327586888,1716245490662,-500.0,0.00039178,6]
[327586889,1716245490672,-4037.06,0.00039178,6]
[327586890,1716245490682,-500.0,0.00039178,6]
[327586891,1716245490691,-500.0,0.00039178,6]
[327586892,1716245490701,-1512.5,0.00039178,6]
[327586893,1716245490711,-500.0,0.00039178,6]
[327586894,1716245490720,-2614.89,0.00039178,6]
[327586895,1716245490730,-850.15,0.00039178,6]
[327586896,1716245490740,-2423.92,0.00039178,6]
[327586897,1716245490749,-500.0,0.00039178,6]
[327586898,1716245490759,-545.56,0.00039178,6]
[327586899,1716245490769,-2445.93,0.00039178,6]
[327586900,1716245490778,-500.0,0.00039178,6]
[327586901,1716245490789,-612.86,0.00039178,6]
[327586902,1716245490799,-537.74,0.00039178,6]
[327586903,1716245490808,-1457.79,0.00039178,6]
[327586904,1716245490818,-500.0,0.00039178,6]
[327586905,1716245490828,-500.0,0.00039178,6]
[327586906,1716245490838,-1187.27,0.00039178,6]
[327586907,1716245490847,-500.0,0.00039178,6]
[327586908,1716245490857,-500.0,0.00039178,6]
[327586909,1716245490867,-500.0,0.00039178,6]
[327586910,1716245490878,-3080.59,0.00039178,6]
[327586911,1716245490891,-500.0,0.00039178,6]
[327586912,1716245490901,-500.0,0.00039178,6]
[327586913,1716245490911,-500.0,0.00039178,6]
[327586914,1716245490922,-500.0,0.00039178,6]
[327586915,1716245490932,-939.38,0.00039178,6]
[327586916,1716245490942,-936.27,0.00039178,6]
[327586917,1716245490952,-1145.85,0.00039178,6]
[327586918,1716245490962,-633.66,0.00039178,6]
[327586919,1716245490973,-500.0,0.00039178,6]
[327586920,1716245490983,-500.0,0.00039178,6]
[327586921,1716245490994,-547.65586912,0.00039178,6]
[327586922,1716245491004,-302.96306808,0.00039178,6]
[327586923,1716245491013,-1256.39,0.00039178,6]
[327586924,1716245491026,-500.0,0.00039178,6]
[327586925,1716245491037,-1868.9,0.00039178,6]
[327586926,1716245491047,-1093.65,0.00039178,6]
[327586927,1716245491057,-500.0,0.00039178,6]
[327586928,1716245491067,-501.78,0.00039178,6]
[327586929,1716245491077,-500.0,0.00039178,6]
[327586930,1716245491087,-500.0,0.00039178,6]
[327586931,1716245491097,-500.0,0.00039178,6]
[327586932,1716245491107,-500.0,0.00039178,6]
[327586933,1716245491118,-1390.13,0.00039178,6]
[327586934,1716245491129,-500.0,0.00039178,6]
[327586935,1716245491145,-591.59978194,0.00039178,6]
[327586936,1716245491155,-500.0,0.00039178,6]
[327586937,1716245491164,-500.0,0.00039178,6]
[327586938,1716245491174,-500.0,0.00039178,6]
[327586939,1716245491184,-536.13,0.00039178,6]
[327586940,1716245491193,-500.0,0.00039178,6]
[327586941,1716245491203,-500.0,0.00039178,6]
[327586942,1716245491213,-500.0,0.00039178,6]
[327586943,1716245491223,-500.0,0.00039178,6]
[327586944,1716245491233,-1210.13,0.00039178,6]
[327586945,1716245491243,-1008.66,0.00039178,6]
[327586946,1716245491252,-500.0,0.00039178,6]
[327586947,1716245491263,-949.73,0.00039178,6]
[327586948,1716245491278,-500.0,0.00039178,6]
[327586949,1716245491287,-500.0,0.00039178,6]
[327586950,1716245491297,-599.81,0.00039178,6]
[327586951,1716245491306,-507.5,0.00039178,6]
[327586952,1716245491316,-500.0,0.00039178,6]
[327586953,1716245491325,-500.0,0.00039178,6]
[327586954,1716245491335,-530.05565547,0.00039178,6]
[327586955,1716245491344,-548.99905697,0.00039178,6]
[327586956,1716245491353,-500.0,0.00039178,6]
[327586957,1716245491363,-500.0,0.00039178,6]
[327586958,1716245491373,-330.20627168,0.00039178,6]
[327586959,1716245491383,-500.0,0.00039178,6]
[327586960,1716245491393,-500.0,0.00039178,6]
[327586961,1716245491403,-2488.2,0.00039178,6]
[327586962,1716245491412,-500.0,0.00039178,6]
[327586963,1716245491422,-500.0,0.00039178,6]
[327586964,1716245491432,-994.51,0.00039178,6]
[327586965,1716245491442,-162.11018618,0.00039178,6]
[327586966,1716245491452,-544.27,0.00039178,6]
[327586967,1716245491461,-500.0,0.00039178,6]
[327586968,1716245491471,-500.0,0.00039178,6]
[327586969,1716245491481,-553.81,0.00039178,6]
[327586970,1716245491491,-500.0,0.00039178,6]
[327586971,1716245491501,-561.8,0.00039178,6]
[327586972,1716245491511,-500.0,0.00039178,6]
[327586973,1716245491523,-813.72,0.00039178,6]
[327586974,1716245491533,-495.22910074,0.00039178,6]
[327586975,1716245491543,-500.0,0.00039178,6]
[327586976,1716245491553,-527.23,0.00039178,6]
[327586977,1716245491563,-500.0,0.00039178,6]
[327586978,1716245491573,-780.82,0.00039178,6]
[327586979,1716245491582,-500.0,0.00039178,6]
[327586980,1716245491592,-748.25,0.00039178,6]
[327586981,1716245491602,-500.0,0.00039178,6]
[327586982,1716245491612,-540.34,0.00039178,6]
[327586983,1716245491621,-500.0,0.00039178,6]
[327586984,1716245491631,-460.70015006,0.00039178,6]
[327586985,1716245491642,-500.0,0.00039178,6]
[327586986,1716245491652,-576.59,0.00039178,6]
[327586987,1716245491662,-1049.02,0.00039178,6]
[327586988,1716245491671,-500.0,0.00039178,6]
[327586989,1716245491681,-3015.58,0.00039178,6]
[327586990,1716245491691,-169.49049373,0.00039178,6]
[327586991,1716245491700,-500.0,0.00039178,6]
[327586992,1716245491710,-720.35,0.00039178,6]
[327586993,1716245491720,-2808.06,0.00039178,6]
[327586994,1716245491729,-500.0,0.00039178,6]
[327586995,1716245491739,-1197.9,0.00039178,6]
[327586996,1716245491749,-500.0,0.00039178,6]
[327586997,1716245491759,-3734.43,0.00039178,6]
[327586998,1716245491772,-500.0,0.00039178,6]
[327586999,1716245491781,-706.28,0.00039178,6]
[327587000,1716245491791,-580.90607762,0.00039178,6]
[327587001,1716245491801,-914.18,0.00039178,6]
[327587002,1716245491811,-513.79329154,0.00039178,6]
[327587003,1716245491821,-500.0,0.00039178,6]
[327587004,1716245491831,-500.0,0.00039178,6]
[327587005,1716245491840,-834.67,0.00039178,6]
[327587006,1716245491850,-555.57,0.00039178,6]
[327587007,1716245491859,-3244.42,0.00039178,6]
[327587008,1716245491868,-3077.27,0.00039178,6]
[327587009,1716245491878,-693.24,0.00039178,6]
[327587010,1716245491891,-500.0,0.00039178,6]
[327587011,1716245491900,-3754.49,0.00039178,6]
[327587012,1716245491910,-618.2,0.00039178,6]
[327587013,1716245491921,-500.0,0.00039178,6]
[327587014,1716245491930,-500.0,0.00039178,6]
[327587015,1716245491940,-500.0,0.00039178,6]
[327587016,1716245491949,-500.0,0.00039178,6]
[327587017,1716245491960,-500.0,0.00039178,6]
[327587018,1716245491970,-500.0,0.00039178,6]